fUSD/lending_fUSD_20260326
["ID","MTS","AMOUNT","RATE_DAILY","PERIOD"]
[418912124,1774531844794,-1000.0,0.0001443,2]
[418912125,1774531844803,-933.52493421,0.0001443,2]
[418912126,1774531844812,-1000.0,0.00014451,2]
[418912127,1774531844821,-8877.89810322,0.00014471,2]
[418912128,1774531844831,-1152.0,0.00014484,2]
[418912129,1774531844840,-4609.0,0.00014484,2]
[418912130,1774531844849,-430.46,0.00014518,2]
[418912131,1774531844859,-1000.0,0.00014523,2]
[418912132,1774531844868,-430.46,0.00014623,2]
[418912133,1774531844877,-1600.0,0.00014651,2]
[418912134,1774531844887,-430.48665564,0.00014728,2]
[418912135,1774531844896,-1000.0,0.00014788,2]
[418912136,1774531844905,-501.06211491,0.00014795,2]
[418912137,1774531844914,-1500.0,0.00014795,2]
[418912138,1774531844923,-1076.93292255,0.00014795,2]
[418912139,1774531844932,-1500.0,0.00014795,2]
[418912140,1774531844942,-1500.0,0.00014795,2]
[418912141,1774531844951,-2000.0,0.00014842,2]
[418912142,1774531844960,-503.0,0.00014857,2]
[418912143,1774531844969,-157.03,0.00014884,2]
[418912144,1774531844979,-1252.0,0.00014905,2]
[418912145,1774531844988,-1500.0,0.0001494,2]
[418912146,1774531844997,-1585.20383967,0.0001494,2]
[418912147,1774531845006,-1500.0,0.00014973,2]
[418912148,1774531845015,-191.78949259,0.00014978,2]
[418912149,1774531845024,-1500.0,0.00014978,2]
[418912150,1774531845034,-1006.03072976,0.00014978,2]
[418912151,1774531845043,-1500.0,0.00014978,2]
[418912152,1774531845052,-195.294615,0.00014993,7]
[418912153,1774531845062,-626.72,0.00015,2]
[418912154,1774531845071,-300.0,0.00015,2]
[418912155,1774531845081,-312.0,0.00015,2]
[418912156,1774531845090,-308.0,0.00015,2]
[418912157,1774531845099,-244.90059831,0.00015067,2]
[418912158,1774531845108,-262.32,0.00015068,2]
[418912159,1774531845117,-517.17,0.00015068,2]
[418912160,1774531845126,-341.0817,0.000151,2]
[418912161,1774531845135,-366.77663085,0.00015117,2]
[418912162,1774531845144,-3062.944437,0.00015125,7]
[418912163,1774531845154,-8877.89810322,0.00015185,2]
[418912164,1774531845163,-300.0,0.000152,2]
[418912165,1774531845172,-1839.58,0.000152,2]
[418912166,1774531845181,-1000.0,0.00015222,2]
[418912167,1774531845191,-181.65565772,0.00015228,7]
[418912168,1774531845200,-181.65565772,0.00015228,7]
[418912169,1774531845210,-350.0,0.00015309,2]
[418912170,1774531845219,-7839.26,0.0001531,2]
[418912171,1774531845228,-14041.88,0.0001531,2]
[418912172,1774531845237,-1000.0,0.00015335,2]
[418912173,1774531845247,-1000.0,0.00015335,2]
[418912174,1774531845256,-1000.0,0.00015335,2]
[418912175,1774531845265,-1000.0,0.00015335,2]
[418912176,1774531845274,-1000.0,0.00015335,2]
[418912177,1774531845283,-1000.0,0.00015335,2]
[418912178,1774531845292,-1000.0,0.00015335,2]
[418912179,1774531845301,-1000.0,0.00015335,2]
[418912180,1774531845310,-1000.0,0.00015335,2]
[418912181,1774531845319,-1000.0,0.00015342,2]
[418912182,1774531845328,-1000.0,0.00015342,2]
[418912183,1774531845338,-259.654,0.00015342,2]
[418912184,1774531845347,-2000.0,0.00015342,2]
[418912185,1774531845358,-2000.0,0.00015342,2]
[418912186,1774531845367,-502.73579383,0.00015342,2]
[418912187,1774531845376,-410.863998,0.00015362,7]
[418912188,1774531845385,-604.16,0.00015363,2]
[418912189,1774531845393,-350.0,0.00015375,2]
[418912190,1774531845403,-1903.86,0.000154,2]
[418912191,1774531845412,-2000.0,0.00015488,2]
[418912192,1774531845421,-1262.0,0.00015495,2]
[418912193,1774531845430,-1216.0,0.00015495,2]
[418912194,1774531845440,-924.0,0.00015495,2]
[418912195,1774531845448,-6011.0,0.00015495,2]
[418912196,1774531845458,-621.0,0.00015495,2]
[418912197,1774531845467,-1000.0,0.00015506,2]
[418912198,1774531845476,-500.89802882,0.00015521,2]
[418912199,1774531845487,-1889.39669243,0.00015526,2]
[418912200,1774531845496,-2000.0,0.00015526,2]
[418912201,1774531845505,-350.0,0.00015538,2]
[418912202,1774531845514,-350.0,0.00015606,2]
[418912203,1774531845523,-176.23,0.00015621,2]
[418912204,1774531845532,-5888.0,0.00015634,2]
[418912205,1774531845541,-250.0,0.00015661,2]
[418912206,1774531845551,-250.0,0.00015661,2]
[418912207,1774531845560,-250.0,0.00015661,2]
[418912208,1774531845569,-250.0,0.00015661,2]
[418912209,1774531845578,-250.0,0.00015661,2]
[418912210,1774531845588,-250.0,0.00015661,2]
[418912211,1774531845597,-250.0,0.00015661,2]
[418912212,1774531845606,-250.0,0.00015661,2]
[418912213,1774531845615,-338.0,0.00015661,2]
[418912214,1774531845624,-1154.11291767,0.0001568,2]
[418912215,1774531845632,-1000.0,0.00015685,2]
[418912216,1774531845641,-190.43966883,0.00015692,2]
[418912217,1774531845651,-1003.5,0.00015693,2]
[418912218,1774531845660,-1000.0,0.000157,2]
[418912219,1774531845669,-1000.0,0.000157,2]
[418912220,1774531845678,-469.082,0.000157,2]
[418912221,1774531845688,-300.0,0.000157,5]
[418912222,1774531845697,-503.0,0.00015714,3]
[418912223,1774531845706,-1927.935417,0.0001573,7]
[418912224,1774531845715,-250.0,0.00015733,2]
[418912225,1774531845724,-250.0,0.00015733,2]
[418912226,1774531845734,-250.0,0.00015733,2]
[418912227,1774531845744,-250.0,0.00015733,2]
[418912228,1774531845753,-250.0,0.00015733,2]
[418912229,1774531845763,-250.0,0.00015733,2]
[418912230,1774531845772,-250.0,0.00015733,2]
[418912231,1774531845781,-250.0,0.00015733,2]
[418912232,1774531845790,-188.0,0.00015733,2]
[418912233,1774531845800,-200.0,0.00015739,2]
[418912234,1774531845809,-200.0,0.00015739,2]
[418912235,1774531845818,-200.0,0.00015739,2]
[418912236,1774531845827,-200.0,0.00015739,2]
[418912237,1774531845836,-200.0,0.00015739,2]
[418912238,1774531845846,-200.0,0.00015739,2]
[418912239,1774531845855,-200.0,0.00015739,2]
[418912240,1774531845865,-214.0,0.00015739,2]
[418912241,1774531845874,-176.23,0.00015746,2]
[418912242,1774531845883,-262.32,0.00015753,2]
[418912243,1774531845892,-1060.32865217,0.00015765,2]
[418912244,1774531845902,-2337.78,0.000158,2]
[418912245,1774531845912,-285.85,0.000158,2]
[418912246,1774531845922,-300.0,0.000158,5]
[418912247,1774531845932,-1879.08,0.00015862,2]
[418912248,1774531845941,-500.0,0.00015871,2]
[418912249,1774531845950,-500.0,0.00015872,2]
[418912250,1774531845960,-500.0,0.00015872,2]
[418912251,1774531845969,-200.0,0.00015872,2]
[418912252,1774531845979,-2500.0,0.0001589,2]
[418912253,1774531845989,-2500.0,0.0001589,2]
[418912254,1774531845998,-5888.0,0.00015895,2]
[418912255,1774531846008,-1895.4,0.000159,2]
[418912256,1774531846017,-244.90059831,0.000159,2]
[418912257,1774531846027,-300.0,0.000159,5]
[418912258,1774531846036,-8877.89810322,0.000159,2]
[418912259,1774531846045,-277.21878176,0.000159,2]
[418912260,1774531846055,-13374.32017487,0.000159,2]
[418912261,1774531846064,-708.17629663,0.000159,2]
[418912262,1774531846073,-1637.44104206,0.000159,2]
[418912263,1774531846082,-1052.0,0.000159,5]
[418912264,1774531846092,-1021.0,0.000159,5]
[418912265,1774531846101,-150.0,0.000159,2]
[418912266,1774531846110,-150.0,0.000159,2]
[418912267,1774531846120,-1328.277478,0.00015924,7]
[418912268,1774531846129,-249.0,0.00015926,2]
[418912269,1774531846139,-250.0,0.00015926,2]
[418912270,1774531846148,-5888.0,0.00015933,2]
[418912271,1774531846158,-1510.0,0.00015933,2]
[418912272,1774531846168,-6453.0,0.00015933,2]
[418912273,1774531846177,-5888.0,0.00015948,2]
[418912274,1774531846186,-1969.078975,0.00015953,7]
[418912275,1774531846195,-604.16,0.00015963,2]
[418912276,1774531846205,-9901.6987081,0.00015964,2]
[418912277,1774531846214,-168877.3272738,0.00015964,2]
[418912278,1774531846224,-3060.5703422,0.00015964,2]
[418912279,1774531846234,-40103.2807449,0.00015964,2]
[418912280,1774531846243,-151.0,0.00015964,2]
[418912281,1774531846253,-500.0,0.00015964,2]
[418912282,1774531846262,-500.0,0.00015964,2]
[418912283,1774531846271,-500.0,0.00015964,2]
[418912284,1774531846281,-500.0,0.00015964,2]
[418912285,1774531846291,-178.561689,0.00015964,2]
[418912286,1774531846300,-178.561689,0.00015964,2]
[418912287,1774531846309,-178.561689,0.00015964,2]
[418912288,1774531846319,-178.561689,0.00015964,2]
[418912289,1774531846328,-300.0,0.0001597,2]
[418912290,1774531846338,-300.0,0.0001597,2]
[418912291,1774531846348,-400.0,0.0001597,2]
[418912292,1774531846357,-400.0,0.0001597,2]
[418912293,1774531846367,-550.0,0.0001597,2]
[418912294,1774531846377,-502.34122551,0.00015973,2]
[418912295,1774531846386,-166.32485968,0.00015973,2]
[418912296,1774531846396,-558.73,0.00015978,2]
[418912297,1774531846406,-565.29804981,0.0001599,2]
[418912298,1774531846415,-151.0,0.00015997,2]
[418912299,1774531846425,-151.0,0.00015997,2]
[418912300,1774531846434,-500.0,0.00015997,2]
[418912301,1774531846444,-500.0,0.00015997,2]
[418912302,1774531846454,-500.0,0.00015997,2]
[418912303,1774531846464,-500.0,0.00015997,2]
[418912304,1774531846473,-500.0,0.00015997,2]
[418912305,1774531846483,-500.0,0.00015997,2]
[418912306,1774531846492,-500.0,0.00015997,2]
[418912307,1774531846501,-500.0,0.00015997,2]
[418912308,1774531846510,-500.0,0.00015997,2]
[418912309,1774531846520,-500.0,0.00015997,2]
[418912310,1774531846529,-500.0,0.00015997,2]
[418912311,1774531846538,-627.90943667,0.00015997,2]
[418912312,1774531846547,-500.0,0.00015997,2]
[418912313,1774531846557,-500.0,0.00015997,2]
[418912314,1774531846566,-500.0,0.00015997,2]
[418912315,1774531846576,-500.0,0.00015997,2]
[418912316,1774531846585,-500.0,0.00015997,2]
[418912317,1774531846594,-500.0,0.00015997,2]
[418912318,1774531846604,-639.58784564,0.00015997,2]
[418912319,1774531846613,-500.0,0.00015997,2]
[418912320,1774531846622,-500.0,0.00015997,2]
[418912321,1774531846631,-500.0,0.00015997,2]
[418912322,1774531846641,-500.0,0.00015997,2]
[418912323,1774531846650,-500.0,0.00015997,2]
[418912324,1774531846660,-500.0,0.00015997,2]
[418912325,1774531846669,-500.0,0.00015997,2]
[418912326,1774531846679,-500.0,0.00015997,2]
[418912327,1774531846688,-500.0,0.00015997,2]
[418912328,1774531846698,-500.0,0.00015997,2]
[418912329,1774531846707,-500.0,0.00015997,2]
[418912330,1774531846717,-500.0,0.00015997,2]
[418912331,1774531846726,-500.0,0.00015997,2]
[418912332,1774531846736,-636.32167353,0.00015997,2]
[418912333,1774531846745,-500.0,0.00015997,2]
[418912334,1774531846754,-500.0,0.00015997,2]
[418912335,1774531846763,-472.44900088,0.00015997,2]
[418912336,1774531846773,-1019.959606,0.00015997,2]
[418912337,1774531846782,-1019.959606,0.00015997,2]
[418912338,1774531846791,-1019.959606,0.00015997,2]
[418912339,1774531846801,-1019.959606,0.00015997,2]
[418912340,1774531846810,-500.0,0.00015997,2]
[418912341,1774531846819,-500.0,0.00015997,2]
[418912342,1774531846829,-500.0,0.00015997,2]
[418912343,1774531846838,-500.0,0.00015997,2]
[418912344,1774531846847,-500.0,0.00015997,2]
[418912345,1774531846857,-500.0,0.00015997,2]
[418912346,1774531846866,-500.0,0.00015997,2]
[418912347,1774531846875,-500.0,0.00015997,2]
[418912348,1774531846884,-500.0,0.00015997,2]
[418912349,1774531846893,-150.0,0.00015997,2]
[418912350,1774531846903,-500.0,0.00015997,2]
[418912351,1774531846912,-500.0,0.00015997,2]
[418912352,1774531846921,-500.0,0.00015997,2]
[418912353,1774531846931,-151.26186243,0.00015997,2]
[418912354,1774531846940,-500.0,0.00015997,2]
[418912355,1774531846949,-500.0,0.00015997,2]
[418912356,1774531846960,-500.0,0.00015997,2]
[418912357,1774531846970,-500.0,0.00015997,2]
[418912358,1774531846979,-500.0,0.00015997,2]
[418912359,1774531846989,-500.0,0.00015997,2]
[418912360,1774531846998,-500.0,0.00015997,2]
[418912361,1774531847007,-500.0,0.00015997,2]
[418912362,1774531847016,-307.72690574,0.00015997,2]
[418912363,1774531847025,-500.0,0.00015997,2]
[418912364,1774531847035,-500.0,0.00015997,2]
[418912365,1774531847044,-500.0,0.00015997,2]
[418912366,1774531847054,-500.0,0.00015997,2]
[418912367,1774531847063,-500.0,0.00015997,2]
[418912368,1774531847073,-480.0,0.00015997,2]
[418912369,1774531847082,-500.0,0.00015997,2]
[418912370,1774531847092,-150.0,0.00015997,2]
[418912371,1774531847101,-500.0,0.00015997,2]
[418912372,1774531847111,-500.0,0.00015997,2]
[418912373,1774531847121,-480.0,0.00015997,2]
[418912374,1774531847130,-500.0,0.00015997,2]
[418912375,1774531847139,-500.0,0.00015997,2]
[418912376,1774531847149,-500.0,0.00015997,2]
[418912377,1774531847158,-500.0,0.00015997,2]
[418912378,1774531847168,-480.0,0.00015997,2]
[418912379,1774531847178,-356.91895717,0.00015997,2]
[418912380,1774531847187,-500.0,0.00015997,2]
[418912381,1774531847197,-480.0,0.00015997,2]
[418912382,1774531847206,-500.0,0.00015997,2]
[418912383,1774531847216,-500.0,0.00015997,2]
[418912384,1774531847225,-500.0,0.00015997,2]
[418912385,1774531847235,-480.0,0.00015997,2]
[418912386,1774531847244,-188.31660874,0.00015997,2]
[418912387,1774531847253,-500.0,0.00015997,2]
[418912388,1774531847263,-500.0,0.00015997,2]
[418912389,1774531847272,-500.0,0.00015997,2]
[418912390,1774531847282,-500.0,0.00015997,2]
[418912391,1774531847291,-500.0,0.00015997,2]
[418912392,1774531847301,-150.0,0.00015997,2]
[418912393,1774531847310,-155.84481505,0.00015997,2]
[418912394,1774531847319,-500.0,0.00015997,2]
[418912395,1774531847328,-500.0,0.00015997,2]
[418912396,1774531847337,-500.0,0.00015997,2]
[418912397,1774531847347,-500.0,0.00015997,2]
[418912398,1774531847356,-500.0,0.00015997,2]
[418912399,1774531847365,-500.0,0.00015997,2]
[418912400,1774531847374,-500.0,0.00015997,2]
[418912401,1774531847383,-500.0,0.00015997,2]
[418912402,1774531847392,-500.0,0.00015997,2]
[418912403,1774531847401,-500.0,0.00015997,2]
[418912404,1774531847409,-500.0,0.00015997,2]
[418912405,1774531847419,-500.0,0.00015997,2]
[418912406,1774531847427,-500.0,0.00015997,2]
[418912407,1774531847436,-500.0,0.00015997,2]
[418912408,1774531847445,-500.0,0.00015997,2]
[418912409,1774531847454,-500.0,0.00015997,2]
[418912410,1774531847464,-500.0,0.00015997,2]
[418912411,1774531847473,-301.73235025,0.00015997,2]
[418912412,1774531847483,-500.0,0.00015997,2]
[418912413,1774531847492,-500.0,0.00015997,2]
[418912414,1774531847501,-480.0,0.00015997,2]
[418912415,1774531847510,-500.0,0.00015997,2]
[418912416,1774531847519,-500.0,0.00015997,2]
[418912417,1774531847528,-500.0,0.00015997,2]
[418912418,1774531847537,-480.0,0.00015997,2]
[418912419,1774531847545,-150.0,0.00015997,2]
[418912420,1774531847554,-500.0,0.00015997,2]
[418912421,1774531847564,-500.0,0.00015997,2]
[418912422,1774531847573,-500.0,0.00015997,2]
[418912423,1774531847582,-480.0,0.00015997,2]
[418912424,1774531847591,-152.74342188,0.00015997,2]
[418912425,1774531847600,-500.0,0.00015997,2]
[418912426,1774531847609,-480.0,0.00015997,2]
[418912427,1774531847618,-500.0,0.00015997,2]
[418912428,1774531847627,-500.0,0.00015997,2]
[418912429,1774531847636,-480.0,0.00015997,2]
[418912430,1774531847645,-500.0,0.00015997,2]
[418912431,1774531847654,-500.0,0.00015997,2]
[418912432,1774531847664,-500.0,0.00015997,2]
[418912433,1774531847674,-480.0,0.00015997,2]
[418912434,1774531847683,-500.0,0.00015997,2]
[418912435,1774531847692,-500.0,0.00015997,2]
[418912436,1774531847702,-500.0,0.00015997,2]
[418912437,1774531847711,-480.0,0.00015997,2]
[418912438,1774531847720,-500.0,0.00015997,2]
[418912439,1774531847730,-500.0,0.00015997,2]
[418912440,1774531847739,-388.14313993,0.00015997,2]
[418912441,1774531847748,-480.0,0.00015997,2]
[418912442,1774531847757,-500.0,0.00015997,2]
[418912443,1774531847766,-500.0,0.00015997,2]
[418912444,1774531847776,-480.0,0.00015997,2]
[418912445,1774531847785,-150.0,0.00015997,2]
[418912446,1774531847795,-206.13980161,0.00015997,2]
[418912447,1774531847804,-480.0,0.00015997,2]
[418912448,1774531847813,-214.58664017,0.00015997,2]
[418912449,1774531847823,-500.0,0.00015997,2]
[418912450,1774531847832,-480.0,0.00015997,2]
[418912451,1774531847842,-480.0,0.00015997,2]
[418912452,1774531847851,-500.0,0.00015997,2]
[418912453,1774531847860,-500.0,0.00015997,2]
[418912454,1774531847870,-437.62669579,0.00015997,2]
[418912455,1774531847880,-500.0,0.00015997,2]
[418912456,1774531847889,-500.0,0.00015997,2]
[418912457,1774531847898,-378.87354826,0.00015997,2]
[418912458,1774531847907,-500.0,0.00015997,2]
[418912459,1774531848093,-500.0,0.00015997,2]
[418912460,1774531848103,-480.0,0.00015997,2]
[418912461,1774531848112,-343.66648939,0.00015997,2]
[418912462,1774531848121,-150.0,0.00015997,2]
[418912463,1774531848131,-480.0,0.00015997,2]
[418912464,1774531848140,-480.0,0.00015997,2]
[418912465,1774531848149,-480.0,0.00015997,2]
[418912466,1774531848158,-480.0,0.00015997,2]
[418912467,1774531848168,-480.0,0.00015997,2]
[418912468,1774531848177,-346.83818638,0.00015997,2]
[418912469,1774531848187,-150.0,0.00015997,2]
[418912470,1774531848196,-548.0,0.00015997,2]
[418912471,1774531848205,-548.0,0.00015997,2]
[418912472,1774531848215,-500.0,0.00015997,2]
[418912473,1774531848224,-548.0,0.00015997,2]
[418912474,1774531848234,-500.0,0.00015997,2]
[418912475,1774531848244,-548.0,0.00015997,2]
[418912476,1774531848253,-500.0,0.00015997,2]
[418912477,1774531848263,-548.0,0.00015997,2]
[418912478,1774531848272,-500.0,0.00015997,2]
[418912479,1774531848282,-548.0,0.00015997,2]
[418912480,1774531848292,-500.0,0.00015997,2]
[418912481,1774531848301,-548.0,0.00015997,2]
[418912482,1774531848310,-500.0,0.00015997,2]
[418912483,1774531848320,-548.0,0.00015997,2]
[418912484,1774531848330,-500.0,0.00015997,2]
[418912485,1774531848339,-548.0,0.00015997,2]
[418912486,1774531848349,-548.0,0.00015997,2]
[418912487,1774531848358,-500.0,0.00015997,2]
[418912488,1774531848368,-548.0,0.00015997,2]
[418912489,1774531848377,-548.0,0.00015997,2]
[418912490,1774531848386,-500.0,0.00015997,2]
[418912491,1774531848395,-548.0,0.00015997,2]
[418912492,1774531848404,-500.0,0.00015997,2]
[418912493,1774531848413,-548.0,0.00015997,2]
[418912494,1774531848422,-500.0,0.00015997,2]
[418912495,1774531848431,-500.0,0.00015997,2]
[418912496,1774531848441,-500.0,0.00015997,2]
[418912497,1774531848450,-548.0,0.00015997,2]
[418912498,1774531848460,-500.0,0.00015997,2]
[418912499,1774531848469,-500.0,0.00015997,2]
[418912500,1774531848480,-500.0,0.00015997,2]
[418912501,1774531848489,-548.0,0.00015997,2]
[418912502,1774531848498,-575.92133109,0.00015997,2]
[418912503,1774531848507,-548.0,0.00015997,2]
[418912504,1774531848516,-548.0,0.00015997,2]
[418912505,1774531848526,-548.0,0.00015997,2]
[418912506,1774531848535,-548.0,0.00015997,2]
[418912507,1774531848544,-878.32470845,0.00015999,2]
[418912508,1774531848553,-1122.45503213,0.00015999,5]
[418912509,1774531848562,-1122.45503213,0.00015999,5]
[418912510,1774531848572,-1034.90824408,0.00015999,5]
[418912511,1774531848581,-1041.12610786,0.00015999,5]
[418912512,1774531848589,-1041.12610784,0.00015999,5]
[418912513,1774531848598,-500.0,0.00015999,2]
[418912514,1774531848607,-500.0,0.00015999,2]
[418912515,1774531848617,-500.0,0.00015999,2]
[418912516,1774531848626,-316.47434679,0.00015999,2]
[418912517,1774531848635,-750.07,0.00015999,2]
[418912518,1774531848644,-750.07,0.00015999,2]
[418912519,1774531848654,-750.07,0.00015999,2]
[418912520,1774531848663,-750.07,0.00015999,2]
[418912521,1774531848672,-750.07,0.00015999,2]
[418912522,1774531848681,-750.07,0.00015999,2]
[418912523,1774531848691,-750.07,0.00015999,2]
[418912524,1774531848700,-750.07,0.00015999,2]
[418912525,1774531848709,-750.07,0.00015999,2]
[418912526,1774531848718,-750.07,0.00015999,2]
[418912527,1774531848728,-750.07,0.00015999,2]
[418912528,1774531848738,-750.26330118,0.00015999,2]
[418912529,1774531848747,-604.16,0.00015999,2]
[418912530,1774531848756,-604.16,0.00015999,2]
[418912531,1774531848765,-604.16,0.00015999,2]
[418912532,1774531848775,-604.16,0.00015999,2]
[418912533,1774531848784,-604.16,0.00015999,2]
[418912534,1774531848794,-604.16,0.00015999,2]
[418912535,1774531848803,-604.16,0.00015999,2]
[418912536,1774531848812,-604.16,0.00015999,2]
[418912537,1774531848822,-604.16,0.00015999,2]
[418912538,1774531848831,-604.16,0.00015999,2]
[418912539,1774531848840,-604.16,0.00015999,2]
[418912540,1774531848849,-604.16,0.00015999,2]
[418912541,1774531848859,-604.32,0.00015999,2]
[418912542,1774531848868,-500.0,0.00015999,2]
[418912543,1774531848878,-500.0,0.00015999,2]
[418912544,1774531848887,-220.69817382,0.00015999,2]
[418912545,1774531848896,-300.11645162,0.00015999,2]
[418912546,1774531848905,-300.09272576,0.00015999,2]
[418912547,1774531848914,-151.0,0.00015999,2]
[418912548,1774531848923,-1523.0,0.00015999,2]
[418912549,1774531848932,-1523.0,0.00015999,2]
[418912550,1774531848941,-1523.0,0.00015999,2]
[418912551,1774531848949,-1523.0,0.00015999,2]
[418912552,1774531848959,-151.0,0.00015999,2]
[418912553,1774531848968,-1523.0,0.00015999,2]
[418912554,1774531848977,-1523.0,0.00015999,2]
[418912555,1774531848987,-151.0,0.00015999,2]
[418912556,1774531848996,-160.0,0.00015999,2]
[418912557,1774531849006,-1523.0,0.00015999,2]
[418912558,1774531849015,-151.0,0.00015999,2]
[418912559,1774531849024,-160.0,0.00015999,2]
[418912560,1774531849034,-1523.0,0.00015999,2]
[418912561,1774531849043,-151.0,0.00015999,2]
[418912562,1774531849052,-162.81500828,0.00015999,2]
[418912563,1774531849061,-1523.0,0.00015999,2]
[418912564,1774531849070,-151.0,0.00015999,2]
[418912565,1774531849079,-1523.0,0.00015999,2]
[418912566,1774531849089,-151.0,0.00015999,2]
[418912567,1774531849098,-1523.0,0.00015999,2]
[418912568,1774531849107,-151.0,0.00015999,2]
[418912569,1774531849116,-1523.0,0.00015999,2]
[418912570,1774531849126,-151.0,0.00015999,2]
[418912571,1774531849135,-1523.0,0.00015999,2]
[418912572,1774531849144,-151.0,0.00015999,2]
[418912573,1774531849154,-1523.0,0.00015999,2]
[418912574,1774531849163,-151.0,0.00015999,2]
[418912575,1774531849172,-1523.0,0.00015999,2]
[418912576,1774531849182,-151.0,0.00015999,2]
[418912577,1774531849191,-1523.0,0.00015999,2]
[418912578,1774531849200,-151.0,0.00015999,2]
[418912579,1774531849209,-1523.0,0.00015999,2]
[418912580,1774531849220,-151.0,0.00015999,2]
[418912581,1774531849229,-1523.0,0.00015999,2]
[418912582,1774531849239,-151.0,0.00015999,2]
[418912583,1774531849248,-151.0,0.00015999,2]
[418912584,1774531849257,-1523.0,0.00015999,2]
[418912585,1774531849266,-151.0,0.00015999,2]
[418912586,1774531849276,-1523.0,0.00015999,2]
[418912587,1774531849285,-1523.0,0.00015999,2]
[418912588,1774531849295,-151.0,0.00015999,2]
[418912589,1774531849304,-1523.0,0.00015999,2]
[418912590,1774531849313,-151.0,0.00015999,2]
[418912591,1774531849323,-1523.0,0.00015999,2]
[418912592,1774531849332,-228.45367885,0.00015999,2]
[418912593,1774531849341,-1523.0,0.00015999,2]
[418912594,1774531849351,-1523.0,0.00015999,2]
[418912595,1774531849360,-1523.0,0.00015999,2]
[418912596,1774531849369,-1523.0,0.00015999,2]
[418912597,1774531849379,-1523.0,0.00015999,2]
[418912598,1774531849388,-1523.0,0.00015999,2]
[418912599,1774531849398,-1523.0,0.00015999,2]
[418912600,1774531849407,-1523.0,0.00015999,2]
[418912601,1774531849416,-1523.0,0.00015999,2]
[418912602,1774531849426,-1523.0,0.00015999,2]
[418912603,1774531849435,-1523.0,0.00015999,2]
[418912604,1774531849444,-1523.0,0.00015999,2]
[418912605,1774531849456,-1523.0,0.00015999,2]
[418912606,1774531849465,-1523.0,0.00015999,2]
[418912607,1774531849474,-1523.0,0.00015999,2]
[418912608,1774531849484,-1523.0,0.00015999,2]
[418912609,1774531849493,-1523.0,0.00015999,2]
[418912610,1774531849503,-1523.0,0.00015999,2]
[418912611,1774531849512,-1523.0,0.00015999,2]
[418912612,1774531849522,-1523.0,0.00015999,2]
[418912613,1774531849531,-1523.0,0.00015999,2]
[418912614,1774531849540,-1523.0,0.00015999,2]
[418912615,1774531849550,-1258.7277887,0.00015999,2]
[418912616,1774531849559,-821934.3295329,0.00016,2]
[418912617,1774531849568,-450050.51344262,0.00016,2]
[418912618,1774531849890,-6214.9429633,0.00016,2]
[418912619,1774531849915,-1435.87614288,0.00015495,2]
[418912620,1774531849926,-606.6000014,0.00015495,2]
[418912621,1774531849937,-1443.4524146,0.00015495,2]
[418912622,1774531849948,-30.07144112,0.00015495,2]
[418912623,1774531849958,-384.92855888,0.00016,2]